bitfinex/quotes_ETHUSD_20250815
["timestamp","ask_amount","ask_price","bid_price","bid_amount"]
[1755267109567,3.691,4561.8,4560.5,3.11334885]
[1755267109762,3.691,4561.8,4561.2,2.19236232]
[1755267109959,0.002,4561.9,4560.6,3.40274489]
[1755267109960,3.691,4561.7,4560.6,3.40274489]
[1755267110263,2.19254471,4561.0,4559.9,3.0]
[1755267110494,2.19265007,4560.7,4559.7,0.001]
[1755267110663,3.691,4560.9,4559.8,3.0]
[1755267110862,3.691,4560.9,4559.7,2.19410009]
[1755267110863,2.19286139,4560.3,4559.7,0.001]
[1755267111059,3.691,4560.2,4559.7,0.001]
[1755267111481,3.691,4560.2,4560.0,0.501]
[1755267112082,3.69,4560.2,4560.1,0.0018]
[1755267112280,3.69,4560.2,4560.1,3.10882183]
[1755267112483,3.69,4560.2,4560.1,6.10882183]
[1755267112785,3.69,4560.3,4560.2,3.0]
[1755267112987,3.689,4560.4,4560.1,0.88208262]
[1755267113291,3.689,4560.3,4560.1,0.0018]
[1755267113462,3.689,4560.2,4560.1,0.0018]
[1755267113666,3.689,4560.2,4560.1,5.19473436]
[1755267113888,3.689,4560.2,4560.1,3.0018]
[1755267114196,0.913,4560.9,4560.1,0.0018]
[1755267114402,0.1096,4560.6,4560.1,0.0018]
[1755267114766,2.7734551,4560.6,4560.1,0.0018]
[1755267114966,0.58076,4560.6,4560.1,0.0018]
[1755267115372,0.1096,4560.6,4560.1,0.0018]
[1755267115899,2.19288627,4560.2,4560.1,0.0018]
[1755267116099,5.99048627,4560.2,4560.1,0.0018]
[1755267116302,0.55,4560.1,4559.7,1e-08]
[1755267116631,0.55,4560.1,4558.2,0.001]
[1755267116632,2.19370406,4558.5,4558.2,0.001]
[1755267116905,2.19384844,4558.2,4557.3,0.1096]
[1755267117104,3.55,4558.3,4556.8,0.1096]
[1755267117105,2.19437581,4557.2,4556.8,0.1096]
[1755267117403,3.688,4557.1,4556.6,0.1096]
[1755267117764,3.54273221,4557.1,4556.6,0.1096]
[1755267118205,3.687,4557.0,4555.4,27.04425152]
[1755267118411,3.687,4557.5,4556.4,27.04425152]
[1755267118580,0.1096,4557.9,4557.0,0.1096]
[1755267118784,3.687,4557.8,4557.6,0.1096]
[1755267118984,3.687,4557.8,4557.4,0.1096]
[1755267119909,3.687,4557.8,4557.1,2.19437031]
[1755267120118,0.1096,4557.7,4557.1,0.1096]
[1755267120359,5.265,4558.5,4557.1,0.1096]
[1755267120360,0.57532389,4559.3,4557.2,3.4727]
[1755267120470,3.687,4559.2,4557.3,0.02194281]
[1755267120805,0.4454,4559.6,4557.5,3.0]
[1755267120992,3.687,4559.5,4557.6,0.34414]
[1755267121198,2.19362076,4558.7,4557.8,2.19404098]
[1755267121524,3.687,4558.6,4557.6,0.34414]
[1755267121684,3.687,4558.5,4557.0,0.001]
[1755267121874,0.55,4558.4,4557.0,0.001]
[1755267122068,0.913,4558.5,4557.1,3.0]
[1755267122274,2.19394573,4558.0,4557.1,2.19433718]
[1755267122507,2.19385757,4558.2,4557.2,0.02194329]
[1755267122698,3.687,4558.4,4557.0,3.001]
[1755267122881,3.687,4558.4,4557.5,2.19413964]
[1755267123081,3.687,4558.4,4557.0,0.001]
[1755267123082,2.19380032,4558.3,4557.0,0.001]
[1755267123397,1.02072389,4559.6,4557.2,3.0]
[1755267123573,3.686,4559.5,4558.1,3.0]
[1755267123770,3.686,4559.5,4558.5,2.19369824]
[1755267123771,2.19327604,4559.4,4558.5,2.19369824]
[1755267124122,3.686,4559.5,4558.0,3.0]
[1755267124312,2.19327747,4559.4,4558.5,2.19368159]
[1755267124607,0.74534863,4560.0,4559.3,2.19331326]
[1755267124805,3.686,4559.9,4558.5,0.9141]
[1755267124972,3.686,4559.9,4558.5,1.22488573]
[1755267125174,2.19307864,4559.8,4558.7,2.19356163]
[1755267125394,2.19319456,4559.6,4558.8,2.1935535]
[1755267125933,3.686,4559.9,4558.5,0.31078573]
[1755267126108,2.19331914,4559.3,4557.0,0.9151]
[1755267126309,0.55,4559.4,4557.0,0.001]
[1755267126310,2.1935597,4558.8,4557.0,0.001]
[1755267126509,0.55,4558.7,4557.0,0.001]
[1755267126712,2.19384444,4558.3,4557.1,2.194378]
[1755267126898,3.685,4558.2,4557.1,0.2195378]
[1755267127104,3.685,4558.2,4557.5,2.19414169]
[1755267127456,3.685,4558.2,4557.0,0.001]
[1755267127910,3.685,4558.1,4557.3,2.19423691]
[1755267128316,2.19398326,4558.0,4557.0,0.001]
[1755267128519,2.19398326,4558.0,4557.1,2.194378]
[1755267128753,3.685,4558.1,4557.2,2.19432482]
[1755267128933,3.685,4558.1,4557.0,2.19538282]
[1755267129135,2.19413195,4557.7,4557.0,0.001]
[1755267129434,2.19399284,4557.9,4557.0,0.001]
[1755267129738,3.685,4558.1,4557.0,0.001]
[1755267129937,2.1941854,4557.5,4557.0,0.001]
[1755267130136,2.194378,4557.1,4557.0,0.001]
[1755267130338,2.853978,4557.1,4557.0,0.001]
[1755267130516,2.853978,4557.1,4553.9,0.498]
[1755267130517,0.55,4556.8,4553.9,0.498]
[1755267130716,0.55,4556.4,4554.2,2.19577532]
[1755267131040,0.55,4556.9,4554.3,0.51995727]
[1755267131230,4.13,4557.2,4554.5,3.0]
[1755267131425,4.13,4557.2,4554.9,3.0]
[1755267131630,4.13,4557.2,4555.2,2.19529329]
[1755267131800,3.684,4557.2,4556.7,2.19452522]
[1755267132004,3.684,4557.1,4556.8,2.21646177]
[1755267132215,0.446,4557.8,4557.2,2.19432224]
[1755267132420,0.446,4558.4,4557.3,0.02194281]
[1755267132741,0.446,4559.5,4557.4,3.02194233]
[1755267132916,3.683,4558.3,4557.4,3.0]
[1755267133117,0.5267,4558.7,4558.2,2.19383752]
[1755267133440,3.684,4558.6,4557.6,0.498]
[1755267133911,3.684,4558.6,4558.4,2.19374797]
[1755267134103,0.94777,4558.5,4558.2,2.19380304]
[1755267134304,3.684,4558.6,4557.2,3.0]
[1755267134538,2.19390047,4558.1,4557.2,2.19430749]
[1755267134753,3.684,4558.0,4556.5,3.0]
[1755267134956,3.683,4557.9,4556.5,3.0]
[1755267135122,3.683,4557.9,4555.7,0.965]
[1755267135123,2.19418196,4557.6,4555.7,0.965]
[1755267135322,3.00834384,4557.8,4556.9,2.19442759]
[1755267135531,0.8143,4557.8,4556.0,0.02194907]
[1755267135727,3.683,4557.7,4557.1,2.19437487]
[1755267136056,3.683,4557.7,4556.5,2.19466017]
[1755267136057,2.19415118,4557.6,4556.5,2.19466017]
[1755267136351,3.683,4557.7,4556.6,0.02194618]
[1755267136577,3.683,4557.6,4556.6,0.02194618]
[1755267136777,2.19391203,4558.1,4556.6,0.02194618]
[1755267136778,3.683,4557.5,4556.6,0.02194618]
[1755267137069,3.683,4557.4,4556.6,3.32341354]
[1755267137269,3.683,4557.3,4555.7,0.498]
[1755267137471,3.6822,4557.3,4556.0,3.0]
[1755267137621,3.6822,4557.3,4556.8,2.19448788]
[1755267138049,3.6822,4557.3,4556.9,2.19447204]
[1755267138256,3.682,4557.2,4556.0,3.0]
[1755267138464,3.682,4557.2,4556.1,0.5194956]
[1755267138678,3.682,4557.2,4556.4,3.0]
[1755267138822,3.682,4557.5,4557.2,2.19428631]
[1755267139017,3.682,4557.5,4557.3,2.19427869]
[1755267139221,3.682,4557.5,4557.3,0.02194281]
[1755267139453,3.682,4557.9,4557.4,0.965]
[1755267139723,3.682,4557.9,4557.6,2.19409601]
[1755267139925,3.682,4557.9,4557.1,2.194378]
[1755267140223,3.682,4557.9,4557.1,2.194332]
[1755267140457,3.682,4557.9,4557.3,2.1942817]
[1755267140772,3.682,4557.9,4557.4,0.13154233]
[1755267140968,3.682,4557.9,4557.5,2.1941854]
[1755267141174,3.681,4557.8,4557.7,2.19408912]
[1755267141672,15.0,4558.0,4557.5,0.02194185]
[1755267141968,15.0,4558.0,4557.9,2.19399284]
[1755267142329,15.0,4558.0,4557.9,5.75336104]
[1755267142535,0.1096,4559.3,4558.0,5.19391704]
[1755267142734,0.1096,4559.9,4558.1,0.965]
[1755267142979,0.446,4560.2,4558.0,3.0]
[1755267142980,3.681,4559.8,4559.6,2.19316425]
[1755267143185,3.681,4559.8,4559.7,2.19312674]
[1755267143485,0.1096,4560.1,4560.0,2.19298245]
[1755267143686,0.002,4560.5,4560.4,2.1927901]
[1755267143848,0.002,4560.5,4560.4,2.324318]
[1755267144047,0.002,4560.5,4560.4,6.2673901]
[1755267144673,0.002,4560.5,4560.4,5.3023901]
[1755267151182,0.002,4560.5,4560.4,2.3023901]
[1755267151599,0.002,4560.5,4560.4,0.1096]
[1755267151904,0.9304,4560.5,4560.4,0.1096]
[1755267152269,0.9304,4560.5,4560.4,2.3023901]
[1755267152604,0.002,4560.5,4560.4,2.3023901]
[1755267153007,0.002,4560.5,4560.4,2.324318]
[1755267153904,0.002,4560.5,4560.4,6.289318]
[1755267154106,0.002,4560.5,4560.4,5.3023901]
[1755267156507,0.002,4560.9,4560.5,3.0]
[1755267156721,1e-08,4561.0,4560.9,2.19254971]
[1755267156921,1e-08,4561.0,4560.9,8.8874752]
[1755267157083,1e-08,4561.0,4560.9,8.86554971]
[1755267157287,1e-08,4561.0,4560.9,9.31531791]
[1755267157870,1e-08,4561.0,4560.9,5.64231791]
[1755267158085,1e-08,4561.0,4560.8,2.30219778]
[1755267158086,1e-08,4561.0,4560.8,0.1096]
[1755267158328,0.9141,4560.9,4559.5,3.673]
[1755267158504,0.9141,4560.9,4560.2,2.19284185]
[1755267158709,0.9141,4560.9,4560.3,2.19283254]
[1755267159025,0.4533,4560.8,4559.2,3.672]
[1755267159189,0.9141,4560.8,4559.0,0.11436115]
[1755267159386,2.19289255,4560.2,4559.3,2.19327972]
[1755267159590,0.9141,4560.1,4559.1,2.19341536]
[1755267159906,0.9141,4560.1,4559.1,5.43387093]
[1755267160110,0.9141,4560.1,4559.6,2.19317368]
[1755267160287,0.9141,4560.1,4559.1,0.24045557]
[1755267160486,0.9141,4560.1,4559.5,2.19318227]
[1755267160689,2.19298907,4560.0,4559.2,2.1933591]
[1755267160888,3.10704325,4560.1,4559.3,5.19331557]
[1755267161090,2.1929873,4560.0,4559.3,3.0]
[1755267161290,2.6462873,4560.0,4559.3,3.0]
[1755267161526,0.4533,4559.9,4559.3,5.19331412]
[1755267161742,0.4533,4559.9,4559.3,3.0]
[1755267161893,0.4533,4559.9,4559.3,3.0008]
[1755267162423,2.65391981,4559.8,4559.3,0.0008]
[1755267162621,0.4608,4559.8,4559.3,0.0008]
[1755267162788,0.4533,4559.7,4559.3,0.0008]
[1755267163006,0.9141,4559.7,4559.3,0.0008]
[1755267163650,0.4533,4559.6,4559.3,0.0008]
[1755267164409,0.4533,4560.2,4559.4,2.19322548]
[1755267164655,3.67,4560.1,4559.3,0.0008]
[1755267164834,3.67,4560.3,4559.8,2.19306219]
[1755267165007,3.67,4560.3,4559.6,2.19317264]
[1755267165212,3.67,4560.3,4559.4,5.19324158]
[1755267165434,3.67,4560.3,4559.6,2.19314419]
[1755267165712,3.67,4560.3,4559.4,3.0]
[1755267166011,3.67,4560.4,4560.1,2.19292229]
[1755267166212,3.67,4560.4,4560.2,2.19284267]
[1755267166408,4.037,4560.4,4559.4,2.19327104]
[1755267166624,3.67,4560.4,4559.4,2.19327104]
[1755267166844,3.67,4560.4,4560.2,2.19288239]
[1755267167047,3.67,4560.4,4560.1,2.19292726]
[1755267167252,3.67,4560.4,4559.4,3.0]
[1755267167561,3.669,4560.8,4560.6,2.19264696]
[1755267167850,0.9141,4560.7,4559.5,0.75616]
[1755267168051,2.1928781,4560.3,4559.4,2.19327104]
[1755267168268,2.1928781,4560.3,4560.0,0.1096]
[1755267168553,0.9141,4560.2,4560.0,0.1096]
[1755267168711,3.669,4560.1,4560.0,0.1096]
[1755267168908,4.5831,4560.1,4559.4,2.19326904]
[1755267169109,4.5831,4560.1,4559.8,0.1096]
[1755267169312,3.669,4560.1,4559.8,0.1096]
[1755267169541,3.668,4560.2,4559.8,0.1096]
[1755267169753,3.668,4560.2,4559.8,2.30264975]
[1755267169936,3.668,4560.2,4559.8,0.1096]
[1755267170134,4.1213,4560.2,4559.8,0.1096]
[1755267170461,0.9141,4560.1,4559.8,0.1096]
[1755267170869,0.4533,4560.0,4559.8,0.1096]
[1755267171164,0.4608,4560.1,4559.8,0.1096]
[1755267171165,3.668,4560.2,4559.8,2.30267387]
[1755267171533,3.668,4560.2,4559.8,0.1096]
[1755267171734,4.1213,4560.2,4559.8,0.1096]
[1755267171934,0.9141,4560.1,4559.8,0.1096]
[1755267172355,0.4533,4560.0,4559.8,0.1096]
[1755267172555,3.668,4560.2,4559.8,2.30267724]
[1755267172873,0.9141,4560.1,4559.8,0.1096]
[1755267173032,0.3668,4560.1,4559.8,0.1096]
[1755267173234,5.85886185,4560.3,4559.8,0.1096]
[1755267173436,0.4533,4560.2,4559.8,0.1096]
[1755267173666,3.666,4560.3,4559.8,2.30263637]
[1755267173869,3.666,4560.3,4559.9,0.0219303]
[1755267174075,3.666,4560.3,4559.3,0.0008]
[1755267174076,3.666,4560.3,4559.3,0.02273319]
[1755267174274,3.666,4560.3,4560.2,2.30248627]
[1755267174648,0.002,4560.5,4560.4,2.1927901]
[1755267174836,0.002,4560.5,4560.4,2.214718]
[1755267176262,0.002,4560.5,4560.4,6.6335901]
[1755267176463,0.002,4560.5,4560.4,6.0835901]
[1755267177100,0.002,4560.5,4560.4,5.1927901]
[1755267177906,0.002,4560.5,4560.4,7.19961774]
[1755267178205,0.002,4560.5,4560.4,7.30921774]
[1755267179298,1e-08,4560.5,4560.4,7.85921774]
[1755267179801,0.00120002,4561.5,4561.4,2.19230937]
[1755267179965,0.00120002,4561.5,4561.4,2.41154031]
[1755267180171,1e-08,4561.5,4561.4,6.9838634]
[1755267180366,1e-08,4561.5,4561.4,5.52114031]
[1755267180611,1e-08,4561.5,4561.4,3.1096]
[1755267180818,0.45330001,4561.5,4561.4,3.1096]
[1755267181004,0.45330001,4561.5,4561.4,5.30190937]
[1755267181325,1e-08,4561.5,4561.4,5.30190937]
[1755267181491,1e-08,4561.5,4561.4,6.19270937]
[1755267181835,1e-08,4561.5,4561.4,7.39751916]
[1755267182230,1e-08,4562.0,4561.5,3.55]
[1755267182530,1e-08,4562.1,4562.0,5.74202104]
[1755267182688,1e-08,4562.5,4562.4,2.74182886]
[1755267182887,1e-08,4562.5,4562.4,9.63486541]
[1755267183211,1e-08,4562.5,4562.4,5.30142886]
[1755267183786,1e-08,4562.5,4562.4,6.74222886]
[1755267184424,1e-08,4562.5,4562.4,5.38918786]
[1755267184627,1e-08,4562.5,4562.4,6.40140585]
[1755267184815,1e-08,4562.5,4562.4,8.96242886]
[1755267185488,1e-08,4562.5,4562.4,9.51242886]
[1755267185702,1e-08,4562.5,4562.4,10.40322886]
[1755267186544,1e-08,4563.3,4563.2,2.1914446]
[1755267186726,1e-08,4563.3,4563.2,5.9600446]
[1755267186930,1e-08,4563.3,4563.2,10.07520059]
[1755267188262,1e-08,4563.3,4563.2,10.53540059]
[1755267188471,1e-08,4563.3,4563.2,11.55570059]
[1755267188679,0.04,4564.9,4563.9,0.55]
[1755267188835,0.04,4564.9,4564.4,5.19086846]
[1755267189024,0.04,4564.9,4564.8,2.30027648]
[1755267189225,0.04,4564.9,4564.8,8.95827648]
[1755267189519,0.04,4564.9,4564.8,6.41543247]
[1755267189848,0.4752,4564.9,4564.8,5.30027648]
[1755267190049,0.9634,4564.9,4564.8,5.30027648]
[1755267190258,0.9634,4564.9,4564.8,3.1096]
[1755267191028,0.04,4564.9,4564.8,5.30027648]
[1755267191223,0.04,4564.9,4564.8,8.95727648]
[1755267191437,0.04,4564.9,4564.8,10.07208075]
[1755267192725,0.04,4564.9,4564.8,6.41508075]
[1755267192958,0.04,4564.9,4564.8,5.30027648]
[1755267193158,0.04,4564.9,4564.8,8.95527648]
[1755267193359,0.9634,4564.9,4564.8,3.1096]
[1755267193951,0.9634,4564.9,4563.3,2.19137582]
[1755267194152,0.9234,4564.8,4564.3,2.19087298]
[1755267194466,0.9234,4564.7,4564.5,0.1096]
[1755267194675,3.11417246,4564.6,4564.5,0.1096]
[1755267194841,3.1141798,4564.6,4564.3,0.1096]
[1755267195156,0.04,4564.9,4564.3,0.1096]
[1755267195157,0.9234,4564.5,4564.3,0.1096]
[1755267195461,0.9234,4564.4,4564.3,0.1096]
[1755267196283,0.04,4564.9,4564.3,2.30051646]
[1755267196577,0.4752,4564.9,4564.6,0.1096]
[1755267196731,0.9634,4564.9,4564.6,0.1096]
[1755267197143,0.4352,4564.8,4564.6,0.1096]
[1755267197474,0.04,4564.9,4564.7,0.02190724]
[1755267197643,0.04,4564.9,4564.8,2.21258324]
[1755267197976,0.4752,4564.9,4564.8,4.11659077]
[1755267198179,0.4752,4564.9,4564.8,3.1096]
[1755267198382,0.9634,4564.9,4564.8,5.30027648]
[1755267198537,0.04,4564.9,4564.8,5.30027648]
[1755267199274,0.04,4564.9,4564.8,3.1096]
[1755267199433,0.9634,4564.9,4564.8,3.1096]
[1755267199837,0.4752,4564.9,4564.8,3.1096]
[1755267200073,0.9634,4564.9,4564.8,3.1096]
[1755267200287,0.9634,4564.9,4564.8,0.1096]
[1755267200288,3.15402849,4564.9,4564.8,0.1096]
[1755267200432,3.46943134,4564.9,4564.0,2.19103807]
[1755267200653,3.46943134,4564.9,4564.6,0.1096]
[1755267200654,2.19067837,4564.8,4564.6,0.1096]
[1755267200853,0.9234,4564.8,4564.6,0.1096]
[1755267201052,0.9234,4564.7,4564.6,0.1096]
[1755267201253,3.11412447,4564.7,4564.6,0.1096]
[1755267201504,1.48941788,4564.7,4564.3,0.1096]
[1755267201767,0.042,4564.9,4564.6,2.19072663]
[1755267201988,0.042,4564.9,4564.6,0.1096]
[1755267202174,0.042,4564.9,4564.8,0.1096]
[1755267202492,0.042,4564.9,4564.8,5.30027648]
[1755267202791,0.042,4564.9,4564.8,3.1104]
[1755267203165,0.9654,4564.9,4564.8,0.1104]
[1755267203398,0.042,4564.9,4564.8,0.1104]
[1755267203556,0.042,4564.9,4564.8,2.30107648]
[1755267203889,0.042,4564.9,4564.8,5.75025873]
[1755267204295,0.042,4564.9,4564.8,3.1104]
[1755267204611,3.15602849,4564.9,4564.8,3.1104]
[1755267204773,0.9654,4564.9,4564.8,3.1104]
[1755267205301,3.15602849,4564.9,4564.8,3.1104]
[1755267205466,3.15602849,4564.9,4564.8,0.0008]
[1755267205651,1.60965629,4564.9,4564.8,0.0008]
[1755267205856,1.50005629,4564.9,4564.8,0.0008]
[1755267206058,3.15602849,4564.9,4564.8,0.0008]
[1755267206252,0.042,4564.9,4564.8,0.0008]
[1755267206491,0.042,4564.9,4564.8,0.1104]
[1755267206692,0.042,4564.9,4564.8,5.30107648]
[1755267207560,0.042,4564.9,4564.8,0.1104]
[1755267207761,0.042,4564.9,4564.8,2.30107648]
[1755267208793,0.4772,4564.9,4564.8,0.1104]
[1755267209600,0.4772,4564.9,4564.8,2.30107648]
[1755267210095,0.042,4564.9,4564.8,2.30107648]
[1755267210866,0.042,4564.9,4564.8,5.96256681]
[1755267211088,1e-08,4565.4,4564.9,2.19062849]
[1755267211294,1e-08,4565.4,4565.3,2.30003655]
[1755267211503,1e-08,4565.4,4565.3,8.96894091]
[1755267211802,1e-08,4565.4,4565.3,10.15603118]
[1755267212004,1e-08,4565.4,4565.3,11.08653118]
[1755267213701,1e-08,4565.4,4565.3,10.62633118]
[1755267213907,1e-08,4565.4,4565.3,10.15603118]
[1755267214606,1e-08,4565.4,4565.3,6.50903118]
[1755267214770,1e-08,4565.4,4565.3,5.30003655]
[1755267215997,1e-08,4565.4,4565.3,8.94503655]
[1755267216198,1e-08,4565.4,4565.3,5.30003655]
[1755267216396,0.44160001,4565.4,4565.3,5.30003655]
[1755267216977,1e-08,4565.4,4565.3,5.30003655]
[1755267217180,1e-08,4565.4,4565.3,3.1096]
[1755267217393,1e-08,4565.4,4565.3,5.30003655]
[1755267218918,0.44160001,4565.4,4565.3,3.1096]
[1755267219090,0.92420001,4565.4,4565.3,3.1096]
[1755267220417,1e-08,4565.4,4565.3,8.94303655]
[1755267220920,0.44160001,4565.4,4565.3,3.1096]
[1755267221303,0.92420001,4565.4,4565.3,3.1096]
[1755267221617,0.92420001,4565.4,4565.3,3.0]
[1755267221931,0.92340001,4565.4,4565.3,3.0]
[1755267222122,0.92260001,4565.4,4565.3,3.0]
[1755267222510,0.92260001,4565.4,4565.1,0.1096]
[1755267222711,0.4826,4565.3,4565.1,0.1096]
[1755267222886,0.4826,4565.2,4565.1,0.1104]
[1755267223619,2.67308453,4565.2,4565.1,0.0008]
[1755267224197,3.11468453,4565.2,4565.1,0.0008]
[1755267225113,7.30568453,4565.2,4565.1,0.0008]
[1755267225427,2.19086846,4564.4,4564.3,0.001]
[1755267225627,0.55,4564.4,4563.3,0.001]
[1755267225848,0.55,4564.0,4563.3,0.001]
[1755267226051,0.55,4564.0,4562.9,1e-08]
[1755267226052,2.19115649,4563.8,4562.9,1e-08]
[1755267226253,2.74154065,4563.0,4562.9,1e-08]
[1755267226458,6.38154065,4563.0,4562.9,1e-08]
[1755267226624,7.30574065,4563.0,4562.9,1e-08]
[1755267226953,8.25546138,4563.0,4562.9,1e-08]
[1755267227338,7.70546138,4563.0,4562.9,1e-08]
[1755267227850,8.25546138,4563.0,4562.9,1e-08]
[1755267228252,7.70546138,4563.0,4562.9,1e-08]
[1755267228569,0.94972073,4563.0,4562.9,1e-08]
[1755267228727,3.639,4563.2,4562.9,1e-08]
[1755267229753,4.5632,4563.2,4562.9,1e-08]
[1755267230317,3.639,4563.2,4562.9,1e-08]
[1755267231336,2.19154065,4563.0,4562.9,1e-08]
[1755267231532,3.11569557,4563.1,4562.9,1e-08]
[1755267231730,1.59966956,4563.0,4562.9,1e-08]
[1755267231988,0.9242,4563.0,4562.9,1e-08]
[1755267232144,3.11574065,4563.0,4562.9,1e-08]
[1755267232347,0.9242,4563.0,4562.9,1e-08]
[1755267232579,2.19150121,4563.1,4562.9,1e-08]
[1755267232748,1.55141012,4563.0,4562.9,1e-08]
[1755267233083,3.74295077,4563.0,4562.9,1e-08]
[1755267233493,4.29295077,4563.0,4562.9,1e-08]
[1755267234185,7.29295077,4563.0,4562.9,1e-08]
[1755267234753,11.29295077,4563.0,4562.9,1e-08]
[1755267235789,8.40255077,4563.0,4562.9,1e-08]
[1755267235990,7.85255077,4563.0,4562.9,1e-08]
[1755267236200,5.66101012,4563.0,4562.9,1e-08]
[1755267236369,4.73681012,4563.0,4562.9,1e-08]
[1755267236782,4.37381012,4563.0,4562.9,1e-08]
[1755267237697,0.1096,4563.0,4562.9,1e-08]
[1755267237994,3.7466,4563.3,4562.9,1e-08]
[1755267238298,3.22534065,4563.0,4562.9,1e-08]
[1755267239024,3.636,4563.0,4562.9,1e-08]
[1755267239308,7.12630065,4563.0,4562.9,1e-08]
[1755267240067,4.93476,4563.0,4562.9,1e-08]
[1755267240271,7.12630065,4563.0,4562.9,1e-08]
[1755267240671,4.12016,4563.0,4562.9,1e-08]
[1755267240866,7.23590065,4563.0,4562.9,1e-08]
[1755267241066,7.78590065,4563.0,4562.9,1e-08]
[1755267241472,6.86170065,4563.0,4562.9,1e-08]
[1755267241683,4.12016,4563.0,4562.9,1e-08]
[1755267241915,5.93714065,4563.0,4562.9,1e-08]
[1755267242382,3.7456,4563.0,4562.9,1e-08]
[1755267242582,3.635,4563.1,4562.9,1e-08]
[1755267242817,2.19092847,4564.3,4562.9,0.45501589]
[1755267243125,0.1096,4563.7,4563.1,0.1096]
[1755267243601,0.1096,4564.0,4563.4,0.1096]
[1755267243767,0.31151285,4564.2,4563.5,0.4913]
[1755267243972,3.634,4564.5,4563.8,2.30075215]
[1755267244213,0.1096,4564.6,4563.9,0.02191108]
[1755267244427,0.1116,4565.3,4564.7,0.1096]
[1755267244650,0.002,4565.3,4564.5,0.1096]
[1755267244951,2.19059307,4565.0,4564.3,0.1096]
[1755267245145,0.22305931,4564.8,4564.3,0.1096]
[1755267245311,0.1096,4565.0,4564.4,0.02190868]
[1755267245511,5.93409537,4565.2,4564.6,0.1096]
[1755267245836,2.19053885,4565.1,4564.6,0.1096]
[1755267246012,0.9242,4564.8,4564.6,0.1096]
[1755267246336,4.5497,4564.7,4564.2,0.1096]
[1755267246513,0.57953,4564.6,4564.0,0.1096]
[1755267246712,2.30037432,4564.6,4564.0,0.1096]
[1755267246939,0.1096,4564.6,4564.0,0.1096]
[1755267247843,2.19111627,4563.9,4562.9,1e-08]
[1755267248035,3.632,4563.9,4563.4,0.1096]
[1755267249634,2.19115649,4563.8,4563.4,0.1096]
[1755267249945,2.19121425,4563.7,4563.2,0.1096]
[1755267250149,2.19125636,4563.6,4563.2,0.1096]
[1755267250327,2.19120776,4563.7,4563.2,0.1096]
[1755267251015,0.79454125,4563.8,4563.2,0.1096]
[1755267251351,0.1096,4563.8,4563.2,0.1096]
[1755267251553,2.30076383,4563.8,4563.2,0.1096]
[1755267251928,0.1096,4563.8,4563.2,0.1096]
[1755267252550,2.30078409,4563.8,4563.2,0.1096]
[1755267252719,0.1096,4563.8,4563.2,0.1096]
[1755267253119,2.30075733,4563.8,4563.2,0.1096]
[1755267253818,0.002,4563.9,4563.3,0.02191396]
[1755267254148,0.002,4563.9,4563.8,2.30075649]
[1755267254355,0.002,4563.9,4563.8,3.23785649]
[1755267254551,0.002,4563.9,4563.8,6.23785649]
[1755267255929,0.002,4563.9,4563.8,5.30075649]
[1755267256139,0.002,4563.9,4563.8,6.98705739]
[1755267256362,0.002,4563.9,4563.8,6.04995739]
[1755267256566,0.002,4563.9,4563.8,6.23785649]
[1755267260443,0.002,4563.9,4563.8,9.86385649]
[1755267260946,0.042,4564.9,4564.8,2.19067648]
[1755267261263,0.042,4564.9,4564.8,8.94818324]
[1755267261420,0.042,4564.9,4564.8,9.86337648]
[1755267261624,0.042,4564.9,4564.8,11.0687886]
[1755267261835,0.042,4564.9,4564.8,6.5056886]
[1755267262225,0.042,4564.9,4564.8,5.30027648]
[1755267262434,0.042,4564.9,4564.8,8.92527648]
[1755267263175,0.042,4564.9,4563.4,0.4596]
[1755267263387,0.042,4564.9,4563.2,0.2301139]
[1755267263388,0.042,4564.9,4564.8,2.19067648]
[1755267264243,0.0412,4564.9,4564.8,2.19067648]
[1755267264832,0.0412,4564.9,4564.7,2.19071203]
[1755267265033,0.0412,4564.9,4564.6,3.0]
[1755267265236,0.0412,4564.9,4564.7,5.81467662]
[1755267265435,0.0412,4564.9,4564.8,2.19067648]
[1755267266149,0.0412,4564.9,4564.6,3.623]
[1755267266663,0.4428,4564.8,4564.6,3.623]
[1755267267126,0.0412,4564.9,4564.7,2.19072447]
[1755267267324,0.4428,4564.8,4563.4,0.087738]
[1755267267529,0.9167,4564.8,4564.2,2.19094877]
[1755267267736,1.23154861,4564.8,4564.4,3.0]
[1755267268068,0.4428,4564.7,4564.4,3.0]
[1755267269658,0.4428,4564.7,4564.0,3.622]
[1755267269845,0.0412,4564.9,4564.1,3.0]
[1755267270046,0.0412,4564.9,4564.3,2.19087656]
[1755267270246,0.0412,4564.9,4564.4,3.621]
[1755267270888,0.0412,4564.9,4564.4,5.81186356]
[1755267271165,0.0412,4564.9,4564.4,3.621]
[1755267271166,0.484,4564.9,4564.4,3.621]
[1755267271466,2.70574384,4564.9,4564.2,2.19095647]
[1755267271764,0.4428,4564.8,4564.4,3.621]
[1755267271964,0.0412,4564.9,4564.4,3.6218]
[1755267272170,0.9167,4564.7,4564.4,3.6218]
[1755267272341,0.9167,4564.6,4564.4,3.6218]
[1755267272661,0.4428,4564.5,4564.4,0.0008]
[1755267272867,0.9159,4564.5,4564.4,0.0008]
[1755267273637,0.442,4564.5,4564.4,0.0008]
[1755267273873,0.5151,4564.9,4564.4,0.0008]
[1755267274372,0.4739,4564.8,4564.4,0.0008]
[1755267274975,2.19082046,4564.5,4564.4,0.0008]